[Event "CCT Chessable Masters Play-In 2025"]
[Site "Online"]
[Date "2025.02.17"]
[Round "3.33"]
[White "Smirnov, Pavel"]
[Black "Bortnyk, Olexandr"]
[Result "0-1"]
[ECO "A50"]
[WhiteElo "2476"]
[BlackElo "2601"]
[PlyCount "94"]
[EventDate "2025.02.13"]
[EventType "swiss"]
[EventCountry "NET"]
[TimeControl "600"]
[WhiteClock "0:00:44"]
[BlackClock "0:02:37"]

1. d4 {[%emt 0:00:01]} Nf6 {[%emt 0:00:31]} 2. c4 {[%emt 0:00:01]} b6 {[%emt 0:00:01]} 3. Nc3 {[%emt 0:00:03]} Bb7 {[%emt 0:00:00]} 4. Qc2 {[%emt 0:00:03]} g6 {[%emt 0:00:01]} 5. e4 {[%emt 0:00:03]} d6 {[%emt 0:00:00]} 6. Nf3 {[%emt 0:00:04]} Nbd7 {[%emt 0:00:01]} 7. Be2 {[%emt 0:00:02]} e5 {[%emt 0:00:00]} 8. d5 {[%emt 0:00:02]} h5 {[%emt 0:00:01]} 9. O-O {[%emt 0:00:02]} Bh6 {[%emt 0:00:01]} 10. Bxh6 {[%emt 0:00:05]} Rxh6 {[%emt 0:00:00]} 11. b4 {[%emt 0:00:02]} Kf8 {[%emt 0:00:02]} 12. Ne1 {[%emt 0:00:15]} a5 {[%emt 0:00:04]} 13. Qc1 {[%emt 0:00:02]} Kg7 {[%emt 0:00:05]} 14. a3 {[%emt 0:00:01]} h4 {[%emt 0:00:43]} 15. Nd3 {[%emt 0:00:08]} Ba6 {[%emt 0:00:20]} 16. Nb2 {[%emt 0:00:04]} Nh5 {[%emt 0:00:04]} 17. Bxh5 {[%emt 0:00:20]} Rxh5 {[%emt 0:00:00]} 18. b5 {[%emt 0:00:02]} Bc8 {[%emt 0:00:04]} 19. Nd3 {[%emt 0:00:03]} Nc5 {[%emt 0:01:34]} 20. Nxc5 {[%emt 0:00:09]} bxc5 {[%emt 0:00:01]} 21. f4 {[%emt 0:00:31]} Qf6 {[%emt 0:00:10]} 22. Qe3 {[%emt 0:00:37]} Bd7 {[%emt 0:00:06]} 23. Rf2 {[%emt 0:00:15]} exf4 {[%emt 0:00:06]} 24. Rxf4 {[%emt 0:00:01]} Qe5 {[%emt 0:00:09]} 25. Raf1 {[%emt 0:00:03]} Rf8 {[%emt 0:00:05]} 26. Qd2 {[%emt 0:00:07]} f5 {[%emt 0:00:26]} 27. Re1 {[%emt 0:00:37]} g5 {[%emt 0:00:17]} 28. Rff1 {[%emt 0:00:42]} f4 {[%emt 0:00:02]} 29. Ne2 {[%emt 0:00:11]} h3 {[%emt 0:00:36]} 30. g3 {[%emt 0:00:04]} f3 {[%emt 0:00:20]} 31. Nc1 {[%emt 0:00:05]} a4 {[%emt 0:00:02]} 32. Re3 {[%emt 0:00:48]} g4 {[%emt 0:00:04]} 33. Nd3 {[%emt 0:00:04]} Qd4 {[%emt 0:00:02]} 34. Rc1 {[%emt 0:00:25]} Re5 {[%emt 0:00:03]} 35. Kf1 {[%emt 0:00:58]} Bf5 {[%emt 0:00:26]} 36. Rce1 {[%emt 0:00:21]} Rfe8 {[%emt 0:00:29]} 37. Qb2 {[%emt 0:00:33]} Rxe4 {[%emt 0:00:07]} 38. Qxd4+ {[%emt 0:00:07]} cxd4 {[%emt 0:00:03]} 39. Rxe4 {[%emt 0:00:03]} Rxe4 {[%emt 0:00:03]} 40. Rxe4 {[%emt 0:00:38]} Bxe4 {[%emt 0:00:00]} 41. Nf2 {[%emt 0:00:01]} Bf5 {[%emt 0:00:01]} 42. Ke1 {[%emt 0:00:03]} Kf6 {[%emt 0:00:01]} 43. Kd2 {[%emt 0:00:01]} Ke7 {[%emt 0:00:01]} 44. Nd1 {[%emt 0:00:05]} Kd7 {[%emt 0:00:03]} 45. Nb2 {[%emt 0:00:03]} Bc2 {[%emt 0:00:01]} 46. c5 {[%emt 0:00:12]} dxc5 {[%emt 0:00:01]} 47. Nc4 {[%emt 0:00:09]} f2 {[%emt 0:00:06]} 0-1

[Event "CCT Chessable Masters Play-In 2025"]
[Site "Online"]
[Date "2025.02.17"]
[Round "3.34"]
[White "Daneshvar, Bardiya"]
[Black "Ioannidis, Evgenios"]
[Result "1-0"]
[ECO "D48"]
[WhiteElo "2604"]
[BlackElo "2484"]
[PlyCount "89"]
[EventDate "2025.02.13"]
[EventType "swiss"]
[EventCountry "NET"]
[TimeControl "600"]
[WhiteClock "0:02:40"]
[BlackClock "0:02:46"]

1. d4 {[%emt 0:00:01]} d5 {[%emt 0:00:02]} 2. c4 {[%emt 0:00:00]} e6 {[%emt 0:00:01]} 3. Nf3 {[%emt 0:00:01]} Nf6 {[%emt 0:00:01]} 4. Nc3 {[%emt 0:00:00]} c6 {[%emt 0:00:01]} 5. e3 {[%emt 0:00:02]} Nbd7 {[%emt 0:00:01]} 6. Be2 {[%emt 0:00:01]} dxc4 {[%emt 0:00:02]} 7. Bxc4 {[%emt 0:00:04]} b5 {[%emt 0:00:02]} 8. Bd3 {[%emt 0:00:04]} a6 {[%emt 0:00:01]} 9. a4 {[%emt 0:00:04]} b4 {[%emt 0:00:09]} 10. Ne4 {[%emt 0:00:01]} c5 {[%emt 0:00:08]} 11. a5 {[%emt 0:00:11]} Bb7 {[%emt 0:00:09]} 12. Nxf6+ {[%emt 0:00:02]} Nxf6 {[%emt 0:00:13]} 13. O-O {[%emt 0:00:12]} cxd4 {[%emt 0:00:06]} 14. Nxd4 {[%emt 0:00:04]} Bd6 {[%emt 0:00:07]} 15. Qa4+ {[%emt 0:00:06]} Qd7 {[%emt 0:00:02]} 16. Bd2 {[%emt 0:00:09]} O-O {[%emt 0:00:16]} 17. Bxb4 {[%emt 0:00:13]} Bxb4 {[%emt 0:00:02]} 18. Qxb4 {[%emt 0:00:00]} e5 {[%emt 0:00:08]} 19. Bf5 {[%emt 0:00:05]} Qd5 {[%emt 0:00:02]} 20. Nf3 {[%emt 0:00:03]} e4 {[%emt 0:00:06]} 21. Nd4 {[%emt 0:00:12]} Rab8 {[%emt 0:00:01]} 22. Rfd1 {[%emt 0:00:06]} Qe5 {[%emt 0:00:08]} 23. Rac1 {[%emt 0:00:09]} g6 {[%emt 0:00:24]} 24. Bh3 {[%emt 0:01:13]} Bc8 {[%emt 0:00:47]} 25. Nc6 {[%emt 0:00:17]} Rxb4 {[%emt 0:00:09]} 26. Nxe5 {[%emt 0:00:02]} Bxh3 {[%emt 0:00:02]} 27. gxh3 {[%emt 0:00:00]} Rxb2 {[%emt 0:00:07]} 28. Rc6 {[%emt 0:00:02]} Rb5 {[%emt 0:00:04]} 29. Nc4 {[%emt 0:00:17]} Nd5 {[%emt 0:00:15]} 30. Rxa6 {[%emt 0:00:02]} Nc3 {[%emt 0:00:01]} 31. Ra1 {[%emt 0:00:06]} Rg5+ {[%emt 0:01:33]} 32. Kf1 {[%emt 0:00:03]} f5 {[%emt 0:00:17]} 33. Rc6 {[%emt 0:00:32]} f4 {[%emt 0:00:06]} 34. exf4 {[%emt 0:00:39]} Rxf4 {[%emt 0:00:08]} 35. Rc8+ {[%emt 0:00:01]} Kg7 {[%emt 0:00:02]} 36. Rc7+ {[%emt 0:00:03]} Kh6 {[%emt 0:00:05]} 37. Ne3 {[%emt 0:00:36]} Nd5 {[%emt 0:00:01]} 38. Nxd5 {[%emt 0:00:05]} Rxd5 {[%emt 0:00:01]} 39. Rc2 {[%emt 0:00:02]} Rd7 {[%emt 0:00:33]} 40. a6 {[%emt 0:00:20]} Ra7 {[%emt 0:00:01]} 41. Ke2 {[%emt 0:00:09]} Rf3 {[%emt 0:00:04]} 42. Rc4 {[%emt 0:00:47]} Raf7 {[%emt 0:00:02]} 43. a7 {[%emt 0:00:07]} Rxf2+ {[%emt 0:00:03]} 44. Ke3 {[%emt 0:00:00]} R7f3+ {[%emt 0:00:41]} 45. Kd4 {[%emt 0:00:07]} 1-0

[Event "CCT Chessable Masters Play-In 2025"]
[Site "Online"]
[Date "2025.02.17"]
[Round "3.35"]
[White "Grandelius, Nils"]
[Black "Salem, A.R. Saleh"]
[Result "1/2-1/2"]
[ECO "B07"]
[WhiteElo "2644"]
[BlackElo "2631"]
[PlyCount "87"]
[EventDate "2025.02.13"]
[EventType "swiss"]
[EventCountry "NET"]
[TimeControl "600"]
[WhiteClock "0:03:05"]
[BlackClock "0:04:29"]

1. d4 {[%emt 0:00:01]} Nf6 {[%emt 0:00:01]} 2. Nf3 {[%emt 0:00:01]} g6 {[%emt 0:00:01]} 3. g3 {[%emt 0:00:00]} Bg7 {[%emt 0:00:01]} 4. Bg2 {[%emt 0:00:00]} O-O {[%emt 0:00:01]} 5. O-O {[%emt 0:00:01]} d6 {[%emt 0:00:00]} 6. Re1 {[%emt 0:00:01]} Nbd7 {[%emt 0:00:04]} 7. e4 {[%emt 0:00:01]} e5 {[%emt 0:00:01]} 8. Nc3 {[%emt 0:00:01]} b6 {[%emt 0:00:04]} 9. a4 {[%emt 0:00:02]} a6 {[%emt 0:00:04]} 10. dxe5 {[%emt 0:00:12]} dxe5 {[%emt 0:00:03]} 11. b3 {[%emt 0:00:00]} Bb7 {[%emt 0:00:08]} 12. Ba3 {[%emt 0:00:01]} Re8 {[%emt 0:00:02]} 13. Qe2 {[%emt 0:00:03]} Bf8 {[%emt 0:00:09]} 14. Bxf8 {[%emt 0:00:03]} Kxf8 {[%emt 0:00:02]} 15. Rad1 {[%emt 0:00:05]} Kg7 {[%emt 0:00:20]} 16. Qe3 {[%emt 0:00:09]} Qc8 {[%emt 0:00:12]} 17. Bh3 {[%emt 0:00:18]} Bc6 {[%emt 0:00:09]} 18. Nd5 {[%emt 0:00:46]} Qb7 {[%emt 0:00:02]} 19. c4 {[%emt 0:00:09]} Rad8 {[%emt 0:00:14]} 20. Nh4 {[%emt 0:00:12]} h6 {[%emt 0:00:25]} 21. Qc3 {[%emt 0:00:05]} b5 {[%emt 0:01:17]} 22. cxb5 {[%emt 0:00:31]} axb5 {[%emt 0:00:01]} 23. Nxc7 {[%emt 0:00:11]} Rf8 {[%emt 0:00:35]} 24. Nxb5 {[%emt 0:00:44]} Bxb5 {[%emt 0:00:17]} 25. axb5 {[%emt 0:00:00]} Qxb5 {[%emt 0:00:01]} 26. Bxd7 {[%emt 0:00:53]} Rxd7 {[%emt 0:00:10]} 27. Rxd7 {[%emt 0:00:06]} Nxd7 {[%emt 0:00:02]} 28. Nf3 {[%emt 0:00:06]} Rb8 {[%emt 0:00:20]} 29. Rd1 {[%emt 0:01:00]} Qxb3 {[%emt 0:00:09]} 30. Qxb3 {[%emt 0:00:39]} Rxb3 {[%emt 0:00:00]} 31. Rxd7 {[%emt 0:00:01]} Rxf3 {[%emt 0:00:00]} 32. h4 {[%emt 0:00:07]} Kf6 {[%emt 0:00:09]} 33. Rd6+ {[%emt 0:00:05]} Ke7 {[%emt 0:00:02]} 34. Rd5 {[%emt 0:00:04]} Ke6 {[%emt 0:00:02]} 35. Ra5 {[%emt 0:00:01]} Rd3 {[%emt 0:00:01]} 36. Kg2 {[%emt 0:00:06]} h5 {[%emt 0:00:01]} 37. Ra6+ {[%emt 0:00:01]} Rd6 {[%emt 0:00:01]} 38. Ra5 {[%emt 0:00:01]} Rd4 {[%emt 0:00:08]} 39. Ra6+ {[%emt 0:00:01]} Rd6 {[%emt 0:00:01]} 40. Ra5 {[%emt 0:00:01]} Rc6 {[%emt 0:00:00]} 41. Ra4 {[%emt 0:00:03]} Rb6 {[%emt 0:00:08]} 42. Ra5 {[%emt 0:00:01]} Rc6 {[%emt 0:00:01]} 43. Ra4 {[%emt 0:00:01]} Rd6 {[%emt 0:00:02]} 44. Ra5 {[%emt 0:00:01]} 1/2-1/2

[Event "CCT Chessable Masters Play-In 2025"]
[Site "Online"]
[Date "2025.02.17"]
[Round "3.36"]
[White "Xu, Xiangyu"]
[Black "Hong, Andrew"]
[Result "1-0"]
[ECO "E32"]
[WhiteElo "2623"]
[BlackElo "2579"]
[PlyCount "111"]
[EventDate "2025.02.13"]
[EventType "swiss"]
[EventCountry "NET"]
[TimeControl "600"]
[WhiteClock "0:03:32"]
[BlackClock "0:00:09"]

1. d4 {[%emt 0:00:01]} Nf6 {[%emt 0:00:08]} 2. c4 {[%emt 0:00:01]} e6 {[%emt 0:00:09]} 3. Nc3 {[%emt 0:00:01]} Bb4 {[%emt 0:00:04]} 4. Qc2 {[%emt 0:00:02]} O-O {[%emt 0:00:07]} 5. e4 {[%emt 0:00:02]} d5 {[%emt 0:00:03]} 6. e5 {[%emt 0:00:02]} Ne4 {[%emt 0:00:01]} 7. Bd3 {[%emt 0:00:06]} c5 {[%emt 0:00:01]} 8. a3 {[%emt 0:00:01]} Ba5 {[%emt 0:00:11]} 9. Bxe4 {[%emt 0:01:11]} dxe4 {[%emt 0:00:37]} 10. dxc5 {[%emt 0:00:02]} Nc6 {[%emt 0:01:07]} 11. Bf4 {[%emt 0:00:55]} Qd4 {[%emt 0:01:03]} 12. b4 {[%emt 0:00:03]} Bc7 {[%emt 0:00:51]} 13. Nge2 {[%emt 0:00:03]} Qxc4 {[%emt 0:00:03]} 14. Qxe4 {[%emt 0:00:02]} Qxe4 {[%emt 0:00:07]} 15. Nxe4 {[%emt 0:00:00]} Bxe5 {[%emt 0:00:06]} 16. O-O-O {[%emt 0:00:12]} Bxf4+ {[%emt 0:00:10]} 17. Nxf4 {[%emt 0:00:01]} e5 {[%emt 0:00:02]} 18. Nd5 {[%emt 0:00:08]} Nd4 {[%emt 0:00:06]} 19. Rhe1 {[%emt 0:00:28]} a5 {[%emt 0:00:13]} 20. Ne7+ {[%emt 0:00:15]} Kh8 {[%emt 0:00:02]} 21. Nxc8 {[%emt 0:00:05]} axb4 {[%emt 0:00:03]} 22. axb4 {[%emt 0:00:07]} Rfxc8 {[%emt 0:01:23]} 23. Nd6 {[%emt 0:00:01]} Rf8 {[%emt 0:00:10]} 24. Rxe5 {[%emt 0:00:03]} Nc6 {[%emt 0:00:01]} 25. Re4 {[%emt 0:00:07]} f5 {[%emt 0:00:54]} 26. Rc4 {[%emt 0:00:08]} g6 {[%emt 0:00:09]} 27. b5 {[%emt 0:00:10]} Na5 {[%emt 0:00:08]} 28. Rc3 {[%emt 0:00:08]} Rf6 {[%emt 0:00:08]} 29. Kc2 {[%emt 0:00:18]} Re6 {[%emt 0:00:01]} 30. Re3 {[%emt 0:00:15]} Rxe3 {[%emt 0:00:39]} 31. fxe3 {[%emt 0:00:00]} Nc6 {[%emt 0:00:01]} 32. bxc6 {[%emt 0:00:02]} bxc6 {[%emt 0:00:00]} 33. Rb1 {[%emt 0:00:15]} Ra5 {[%emt 0:00:03]} 34. Nb7 {[%emt 0:00:03]} Ra3 {[%emt 0:00:04]} 35. Rb6 {[%emt 0:00:03]} Rxe3 {[%emt 0:00:06]} 36. Rxc6 {[%emt 0:00:01]} Re2+ {[%emt 0:00:01]} 37. Kd3 {[%emt 0:00:03]} Rxg2 {[%emt 0:00:00]} 38. Rb6 {[%emt 0:00:24]} Rxh2 {[%emt 0:00:05]} 39. c6 {[%emt 0:00:02]} Rh3+ {[%emt 0:00:01]} 40. Kd4 {[%emt 0:00:02]} Rh4+ {[%emt 0:00:01]} 41. Kd5 {[%emt 0:00:02]} Ra4 {[%emt 0:00:07]} 42. c7 {[%emt 0:00:03]} Ra8 {[%emt 0:00:01]} 43. Nd6 {[%emt 0:00:01]} Kg7 {[%emt 0:00:00]} 44. Rb8 {[%emt 0:00:02]} Ra5+ {[%emt 0:00:01]} 45. Nb5 {[%emt 0:00:01]} Kh6 {[%emt 0:00:06]} 46. c8=Q {[%emt 0:00:02]} Ra4 {[%emt 0:00:00]} 47. Qc1+ {[%emt 0:00:02]} Kh5 {[%emt 0:00:05]} 48. Nd4 {[%emt 0:00:04]} Ra5+ {[%emt 0:00:11]} 49. Ke6 {[%emt 0:00:04]} f4 {[%emt 0:00:03]} 50. Qxf4 {[%emt 0:00:04]} Ra6+ {[%emt 0:00:01]} 51. Kf7 {[%emt 0:00:04]} Ra7+ {[%emt 0:00:01]} 52. Kf6 {[%emt 0:00:01]} Ra6+ {[%emt 0:00:01]} 53. Ne6 {[%emt 0:00:01]} h6 {[%emt 0:00:03]} 54. Rb5+ {[%emt 0:00:03]} g5 {[%emt 0:00:01]} 55. Rxg5+ {[%emt 0:00:01]} hxg5 {[%emt 0:00:01]} 56. Qxg5# {[%emt 0:00:00]} 1-0

[Event "CCT Chessable Masters Play-In 2025"]
[Site "Online"]
[Date "2025.02.17"]
[Round "3.37"]
[White "Meshkovs, Nikita"]
[Black "Sadhwani, Raunak"]
[Result "0-1"]
[ECO "A49"]
[WhiteElo "2531"]
[BlackElo "2666"]
[PlyCount "144"]
[EventDate "2025.02.13"]
[EventType "swiss"]
[EventCountry "NET"]
[TimeControl "600"]
[WhiteClock "0:00:10"]
[BlackClock "0:01:07"]

1. d4 {[%emt 0:00:01]} g6 {[%emt 0:00:04]} 2. Nf3 {[%emt 0:00:02]} Bg7 {[%emt 0:00:01]} 3. g3 {[%emt 0:00:00]} Nf6 {[%emt 0:00:02]} 4. Bg2 {[%emt 0:00:01]} O-O {[%emt 0:00:00]} 5. O-O {[%emt 0:00:01]} d6 {[%emt 0:00:01]} 6. b3 {[%emt 0:00:01]} b5 {[%emt 0:00:01]} 7. Bb2 {[%emt 0:00:08]} Bb7 {[%emt 0:00:02]} 8. Na3 {[%emt 0:00:11]} b4 {[%emt 0:00:21]} 9. Nc4 {[%emt 0:00:01]} a5 {[%emt 0:00:00]} 10. Re1 {[%emt 0:00:20]} Nbd7 {[%emt 0:00:06]} 11. a4 {[%emt 0:00:09]} c5 {[%emt 0:00:13]} 12. e3 {[%emt 0:00:20]} Qc7 {[%emt 0:00:07]} 13. c3 {[%emt 0:00:23]} bxc3 {[%emt 0:00:31]} 14. Bxc3 {[%emt 0:00:01]} cxd4 {[%emt 0:00:00]} 15. Bxd4 {[%emt 0:00:23]} Nc5 {[%emt 0:00:21]} 16. Rc1 {[%emt 0:00:07]} Rab8 {[%emt 0:00:07]} 17. Bxc5 {[%emt 0:00:29]} Qxc5 {[%emt 0:00:00]} 18. Qd2 {[%emt 0:00:02]} Ra8 {[%emt 0:00:32]} 19. Nd4 {[%emt 0:01:04]} Bxg2 {[%emt 0:00:22]} 20. Kxg2 {[%emt 0:00:00]} Ne4 {[%emt 0:00:01]} 21. Qd3 {[%emt 0:00:15]} Qd5 {[%emt 0:00:14]} 22. Nb6 {[%emt 0:00:45]} Nc5+ {[%emt 0:00:02]} 23. Nxd5 {[%emt 0:00:05]} Nxd3 {[%emt 0:00:01]} 24. Nxe7+ {[%emt 0:00:04]} Kh8 {[%emt 0:00:01]} 25. Nb5 {[%emt 0:00:06]} Rfd8 {[%emt 0:00:39]} 26. Kf1 {[%emt 0:00:12]} Nxc1 {[%emt 0:00:12]} 27. Rxc1 {[%emt 0:00:01]} Rd7 {[%emt 0:00:00]} 28. Nd5 {[%emt 0:00:03]} Rb7 {[%emt 0:00:10]} 29. Rc6 {[%emt 0:00:04]} Bf8 {[%emt 0:00:02]} 30. Ke2 {[%emt 0:00:09]} Kg7 {[%emt 0:00:02]} 31. Kd3 {[%emt 0:00:02]} h5 {[%emt 0:00:01]} 32. e4 {[%emt 0:00:06]} g5 {[%emt 0:00:01]} 33. h3 {[%emt 0:00:03]} Rab8 {[%emt 0:00:05]} 34. Kc4 {[%emt 0:00:09]} Re8 {[%emt 0:00:03]} 35. Kd4 {[%emt 0:00:08]} Reb8 {[%emt 0:00:28]} 36. g4 {[%emt 0:00:04]} h4 {[%emt 0:00:02]} 37. Kc4 {[%emt 0:00:05]} Re8 {[%emt 0:00:01]} 38. f3 {[%emt 0:00:00]} Rbb8 {[%emt 0:00:08]} 39. Nb6 {[%emt 0:00:15]} Kh8 {[%emt 0:00:33]} 40. Nc3 {[%emt 0:00:13]} d5+ {[%emt 0:00:09]} 41. Ncxd5 {[%emt 0:00:01]} Re6 {[%emt 0:00:08]} 42. Kb5 {[%emt 0:00:04]} Kg7 {[%emt 0:00:08]} 43. Rc7 {[%emt 0:00:14]} Bb4 {[%emt 0:00:08]} 44. Rc6 {[%emt 0:00:15]} Be1 {[%emt 0:00:01]} 45. Nc7 {[%emt 0:00:43]} Re7 {[%emt 0:00:40]} 46. Na6 {[%emt 0:00:03]} Rd8 {[%emt 0:00:06]} 47. Nd5 {[%emt 0:00:01]} Re6 {[%emt 0:00:07]} 48. Nc5 {[%emt 0:00:07]} Rb8+ {[%emt 0:00:01]} 49. Rb6 {[%emt 0:00:06]} Rexb6+ {[%emt 0:00:09]} 50. Nxb6 {[%emt 0:00:00]} Rd8 {[%emt 0:00:00]} 51. Nd5 {[%emt 0:00:03]} Rb8+ {[%emt 0:00:03]} 52. Kc4 {[%emt 0:00:03]} Rc8 {[%emt 0:00:08]} 53. Nb6 {[%emt 0:00:05]} Rc6 {[%emt 0:00:09]} 54. Kb5 {[%emt 0:00:03]} Rf6 {[%emt 0:00:00]} 55. Nd3 {[%emt 0:00:24]} Bg3 {[%emt 0:00:24]} 56. b4 {[%emt 0:00:09]} Rxf3 {[%emt 0:00:04]} 57. Kc4 {[%emt 0:00:07]} axb4 {[%emt 0:00:04]} 58. a5 {[%emt 0:00:01]} Bc7 {[%emt 0:00:06]} 59. Nxb4 {[%emt 0:00:03]} Rxh3 {[%emt 0:00:02]} 60. N4d5 {[%emt 0:00:01]} Bb8 {[%emt 0:00:07]} 61. Nd7 {[%emt 0:00:00]} Ba7 {[%emt 0:00:01]} 62. Ne7 {[%emt 0:00:01]} Ra3 {[%emt 0:00:03]} 63. Nf5+ {[%emt 0:00:02]} Kg8 {[%emt 0:00:08]} 64. Nf6+ {[%emt 0:00:01]} Kh8 {[%emt 0:00:00]} 65. e5 {[%emt 0:00:14]} h3 {[%emt 0:00:04]} 66. Ne4 {[%emt 0:00:02]} h2 {[%emt 0:00:03]} 67. Nfg3 {[%emt 0:00:01]} Rxa5 {[%emt 0:00:01]} 68. Nxg5 {[%emt 0:00:03]} Kg8 {[%emt 0:00:03]} 69. N5e4 {[%emt 0:00:07]} Rxe5 {[%emt 0:00:04]} 70. Kd3 {[%emt 0:00:01]} Ra5 {[%emt 0:00:02]} 71. Ke2 {[%emt 0:00:01]} Ra1 {[%emt 0:00:01]} 72. Nf6+ {[%emt 0:00:11]} Kh8 {[%emt 0:00:02]} 0-1

[Event "CCT Chessable Masters Play-In 2025"]
[Site "Online"]
[Date "2025.02.17"]
[Round "3.38"]
[White "Dubov, Daniil"]
[Black "Mendonca, Leon Luke"]
[Result "1-0"]
[ECO "A30"]
[WhiteElo "2701"]
[BlackElo "2641"]
[PlyCount "69"]
[EventDate "2025.02.13"]
[EventType "swiss"]
[EventCountry "NET"]
[TimeControl "600"]
[WhiteClock "0:04:47"]
[BlackClock "0:00:10"]

1. Nf3 {[%emt 0:00:01]} Nf6 {[%emt 0:00:02]} 2. c4 {[%emt 0:00:03]} e6 {[%emt 0:00:02]} 3. b3 {[%emt 0:00:02]} b6 {[%emt 0:00:03]} 4. g3 {[%emt 0:00:04]} Bb7 {[%emt 0:00:01]} 5. Bg2 {[%emt 0:00:02]} c5 {[%emt 0:00:05]} 6. Bb2 {[%emt 0:00:01]} Be7 {[%emt 0:00:00]} 7. O-O {[%emt 0:00:02]} O-O {[%emt 0:00:02]} 8. Nc3 {[%emt 0:00:05]} a6 {[%emt 0:00:13]} 9. Re1 {[%emt 0:00:05]} d6 {[%emt 0:00:10]} 10. e4 {[%emt 0:00:08]} Nc6 {[%emt 0:00:00]} 11. d4 {[%emt 0:00:03]} cxd4 {[%emt 0:00:00]} 12. Nxd4 {[%emt 0:00:01]} Nxd4 {[%emt 0:00:00]} 13. Qxd4 {[%emt 0:00:01]} Qc7 {[%emt 0:00:06]} 14. Rac1 {[%emt 0:00:04]} Rab8 {[%emt 0:00:32]} 15. h3 {[%emt 0:00:12]} Rfd8 {[%emt 0:00:01]} 16. Red1 {[%emt 0:00:04]} Ne8 {[%emt 0:00:13]} 17. Qe3 {[%emt 0:00:06]} Bc6 {[%emt 0:00:12]} 18. Nd5 {[%emt 0:00:03]} Qb7 {[%emt 0:00:22]} 19. Nxe7+ {[%emt 0:00:06]} Qxe7 {[%emt 0:00:00]} 20. Rd2 {[%emt 0:00:08]} Qb7 {[%emt 0:00:07]} 21. Rcd1 {[%emt 0:00:06]} Rd7 {[%emt 0:00:13]} 22. a4 {[%emt 0:00:37]} f5 {[%emt 0:02:11]} 23. f3 {[%emt 0:00:28]} fxe4 {[%emt 0:00:03]} 24. fxe4 {[%emt 0:00:01]} e5 {[%emt 0:00:10]} 25. g4 {[%emt 0:00:12]} h6 {[%emt 0:00:35]} 26. h4 {[%emt 0:00:05]} Rf7 {[%emt 0:00:35]} 27. Rxd6 {[%emt 0:01:03]} Nxd6 {[%emt 0:00:02]} 28. Rxd6 {[%emt 0:00:01]} Re8 {[%emt 0:00:59]} 29. g5 {[%emt 0:00:19]} Rf4 {[%emt 0:00:16]} 30. gxh6 {[%emt 0:00:31]} Bxe4 {[%emt 0:00:01]} 31. Rg6 {[%emt 0:00:04]} Re7 {[%emt 0:00:32]} 32. Bxe5 {[%emt 0:00:02]} Rxh4 {[%emt 0:00:24]} 33. Qg5 {[%emt 0:00:16]} Rxh6 {[%emt 0:01:17]} 34. Bxe4 {[%emt 0:00:05]} Rxg6 {[%emt 0:00:21]} 35. Qxg6 {[%emt 0:00:02]} 1-0

[Event "CCT Chessable Masters Play-In 2025"]
[Site "Online"]
[Date "2025.02.17"]
[Round "3.39"]
[White "Tari, Aryan"]
[Black "Pantsulaia, Levan"]
[Result "1-0"]
[ECO "B41"]
[WhiteElo "2621"]
[BlackElo "2522"]
[PlyCount "117"]
[EventDate "2025.02.13"]
[EventType "swiss"]
[EventCountry "NET"]
[TimeControl "600"]
[WhiteClock "0:01:26"]

1. e4 {[%emt 0:00:02]} c5 {[%emt 0:00:03]} 2. Nf3 {[%emt 0:00:03]} e6 {[%emt 0:00:01]} 3. d4 {[%emt 0:00:03]} cxd4 {[%emt 0:00:03]} 4. Nxd4 {[%emt 0:00:00]} a6 {[%emt 0:00:01]} 5. a3 {[%emt 0:00:01]} Nf6 {[%emt 0:00:24]} 6. Nc3 {[%emt 0:00:03]} e5 {[%emt 0:01:07]} 7. Nf5 {[%emt 0:00:27]} d5 {[%emt 0:00:04]} 8. Bg5 {[%emt 0:00:06]} d4 {[%emt 0:00:02]} 9. Bxf6 {[%emt 0:00:24]} Qxf6 {[%emt 0:02:06]} 10. Nd5 {[%emt 0:00:08]} Qc6 {[%emt 0:01:16]} 11. Qf3 {[%emt 0:00:44]} g6 {[%emt 0:00:34]} 12. Ng3 {[%emt 0:00:22]} Bg7 {[%emt 0:00:09]} 13. Bd3 {[%emt 0:00:52]} h5 {[%emt 0:00:04]} 14. h3 {[%emt 0:00:04]} Qd6 {[%emt 0:00:02]} 15. c3 {[%emt 0:00:50]} dxc3 {[%emt 0:00:24]} 16. bxc3 {[%emt 0:00:00]} Be6 {[%emt 0:00:02]} 17. Bc4 {[%emt 0:00:07]} Nd7 {[%emt 0:00:03]} 18. O-O {[%emt 0:00:13]} h4 {[%emt 0:00:03]} 19. Ne2 {[%emt 0:00:09]} O-O {[%emt 0:00:04]} 20. Rfd1 {[%emt 0:00:02]} Qc5 {[%emt 0:00:02]} 21. Ba2 {[%emt 0:00:08]} Rfe8 {[%emt 0:00:12]} 22. Ne3 {[%emt 0:00:27]} Nf8 {[%emt 0:00:06]} 23. Bxe6 {[%emt 0:00:21]} Nxe6 {[%emt 0:00:00]} 24. Rd5 {[%emt 0:00:01]} Qe7 {[%emt 0:00:01]} 25. Ng4 {[%emt 0:00:07]} Rad8 {[%emt 0:00:10]} 26. c4 {[%emt 0:00:19]} b5 {[%emt 0:00:11]} 27. cxb5 {[%emt 0:00:23]} Ng5 {[%emt 0:00:10]} 28. Qb3 {[%emt 0:00:16]} Nxe4 {[%emt 0:00:08]} 29. Rxd8 {[%emt 0:00:10]} Rxd8 {[%emt 0:00:00]} 30. bxa6 {[%emt 0:00:05]} Nc5 {[%emt 0:00:48]} 31. Qc4 {[%emt 0:00:30]} Ra8 {[%emt 0:00:10]} 32. Nc3 {[%emt 0:00:07]} Nxa6 {[%emt 0:00:13]} 33. Nd5 {[%emt 0:00:06]} Qc5 {[%emt 0:00:01]} 34. Ngf6+ {[%emt 0:00:09]} Bxf6 {[%emt 0:00:04]} 35. Nxf6+ {[%emt 0:00:00]} Kg7 {[%emt 0:00:00]} 36. Qxh4 {[%emt 0:00:01]} Rh8 {[%emt 0:00:15]} 37. Qg5 {[%emt 0:00:01]} Qd4 {[%emt 0:00:04]} 38. Rf1 {[%emt 0:00:05]} Nc5 {[%emt 0:00:04]} 39. Ng4 {[%emt 0:00:04]} Ne4 {[%emt 0:00:02]} 40. Qxe5+ {[%emt 0:00:01]} Qxe5 {[%emt 0:00:01]} 41. Nxe5 {[%emt 0:00:00]} Re8 {[%emt 0:00:18]} 42. Nf3 {[%emt 0:00:05]} Nc3 {[%emt 0:00:01]} 43. Ra1 {[%emt 0:00:01]} Re4 {[%emt 0:00:01]} 44. g3 {[%emt 0:00:03]} Re2 {[%emt 0:00:04]} 45. a4 {[%emt 0:00:04]} Re6 {[%emt 0:00:07]} 46. a5 {[%emt 0:00:01]} Ra6 {[%emt 0:00:01]} 47. Nd4 {[%emt 0:00:01]} Ne4 {[%emt 0:00:02]} 48. Nb3 {[%emt 0:00:02]} Nd6 {[%emt 0:00:03]} 49. Rc1 {[%emt 0:00:03]} Nb5 {[%emt 0:00:01]} 50. Rc5 {[%emt 0:00:01]} Na7 {[%emt 0:00:01]} 51. Kg2 {[%emt 0:00:02]} Nc6 {[%emt 0:00:00]} 52. h4 {[%emt 0:00:01]} Kf6 {[%emt 0:00:01]} 53. f4 {[%emt 0:00:01]} Ke7 {[%emt 0:00:00]} 54. Kf3 {[%emt 0:00:01]} Kd6 {[%emt 0:00:01]} 55. Ke4 {[%emt 0:00:01]} Ra8 {[%emt 0:00:00]} 56. Rd5+ {[%emt 0:00:02]} Kc7 {[%emt 0:00:01]} 57. h5 {[%emt 0:00:02]} Rb8 {[%emt 0:00:02]} 58. Nd4 {[%emt 0:00:01]} Re8+ 59. Kf3 {[%emt 0:00:01]} 1-0